lending/lending_fUSD_20240703
["ID","MTS","AMOUNT","RATE_DAILY","PERIOD"]
[330992038,1719993032175,-33357.62861576,0.00013426,2]
[330992039,1719993032191,-854.82014811,0.00013426,2]
[330992040,1719993032201,-11927.23123613,0.00013426,2]
[330992041,1719993032210,-1744.55,0.00013472,2]
[330992042,1719993032223,-999.99,0.00013516,2]
[330992043,1719993032232,-3637.61303402,0.00013699,2]
[330992044,1719993032244,-2000.0,0.00013699,2]
[330992045,1719993032255,-248.85696598,0.00013699,2]
[330992046,1719993032264,-544.95,0.00013699,2]
[330992047,1719993032274,-200.0,0.00013699,2]
[330992048,1719993032283,-280.84,0.00013699,2]
[330992049,1719993032292,-1951.37,0.00013699,2]
[330992050,1719993032302,-272.24,0.00013699,2]
[330992051,1719993032312,-1397.75,0.00013699,2]
[330992052,1719993032321,-1611.34,0.00013712,2]
[330992053,1719993032331,-5904.49956117,0.0001387,2]
[330992054,1719993032346,-597.34227907,0.0001387,2]
[330992055,1719993032365,-487.8221344,0.0001387,2]
[330992056,1719993032375,-6.7078656,0.0001389,3]
[330992057,1719993032391,-213.6521344,0.0001389,3]
[330992058,1719993032401,-1454.24549476,0.00013899,2]
[330992059,1719993032410,-324.57225414,0.00013899,2]
[330992060,1719993032420,-158.84365483,0.00013899,2]
[330992061,1719993032429,-162.49117933,0.00013967,2]
[330992062,1719993032438,-185.38345579,0.00013967,2]
[330992063,1719993032448,-174.01036978,0.00013967,2]
[330992065,1719993032457,-181.40672795,0.00013989,2]
[330992067,1719993032466,-180.84630027,0.00013999,2]
[330992068,1719993032476,-47765.30741002,0.00013999,2]
[330992069,1719993037986,-1270.89616337,0.00013999,2]
[330992070,1719993037999,-499140.40433717,0.00013999,2]
[330992071,1719993038010,-410.25553021,0.00013999,2]
[330992072,1719993038020,-494.74304408,0.00013999,2]
[330992073,1719993038030,-500.0,0.00013999,2]
[330992074,1719993038039,-154.07713673,0.00013999,2]
[330992075,1719993038048,-1523680.73709344,0.00014,2]
[330992076,1719993038061,-296542.98817603,0.00014,2]
[330992077,1719993038070,-376.25,0.00014103,2]
[330992078,1719993038079,-1012.69,0.00014303,2]
[330992079,1719993038089,-250.0,0.00014303,2]
[330992080,1719993038100,-272.24,0.00014384,2]
[330992081,1719993038110,-23860.0,0.00014386,2]
[330992082,1719993038119,-420.0,0.00014592,2]
[330992083,1719993038133,-5595.32622858,0.00014798,2]
[330992084,1719993038148,-1454.24549469,0.00014898,2]
[330992085,1719993038157,-317.34,0.00014904,4]
[330992086,1719993038167,-1000.0,0.00014997,2]
[330992087,1719993038177,-316776.00404261,0.00015,2]
[330992088,1719993038189,-500.0,0.00015,2]
[330992089,1719993038199,-272.24,0.00015068,2]
[330992090,1719993038208,-169.68,0.00015358,2]
[330992091,1719993038218,-160.656,0.00015428,2]
[330992092,1719993038229,-178.72,0.00015502,2]
[330992093,1719993038239,-5595.32622855,0.00015534,2]
[330992094,1719993038249,-272.24,0.00015753,2]
[330992095,1719993038260,-1454.24549469,0.00015897,2]
[330992096,1719993038270,-150.05642858,0.000159,2]
[330992097,1719993038279,-150.0,0.000159,2]
[330992098,1719993038289,-587.0,0.00015997,2]
[330992099,1719993038299,-152.64,0.00016029,2]
[330992100,1719993038308,-160.656,0.00016238,2]
[330992101,1719993038318,-5595.32622855,0.00016269,2]
[330992102,1719993038328,-158.84365482,0.00016348,2]
[330992103,1719993038337,-376.25,0.00016367,2]
[330992104,1719993038347,-272.24,0.00016438,2]
[330992105,1719993038358,-210431.45770715,0.00016439,7]
[330992106,1719993038383,-308.095,0.00016439,7]
[330992107,1719993038403,-2809.54623438,0.00016439,7]
[330992108,1719993040167,-607.52,0.00014883,2]
[330992109,1719993040178,-29703.49265247,0.00016439,7]
[330992110,1719993040189,-250.0,0.00016448,2]
[330992111,1719993040198,-1000.0,0.00016664,2]
[330992112,1719993040208,-162.17,0.00016712,2]
[330992113,1719993040219,-28444.58433377,0.00016896,2]
[330992114,1719993040281,-24820.17072417,0.00016896,2]
[330992115,1719993040291,-1454.24549469,0.00016896,2]
[330992116,1719993040301,-324.57225414,0.00016896,2]
[330992117,1719993040311,-350.0,0.00016996,2]
[330992118,1719993040321,-5595.32622855,0.00017005,2]
[330992119,1719993040330,-152.64,0.00017097,2]
[330992120,1719993040339,-160.656,0.00017133,2]
[330992121,1719993040350,-500.0,0.0001726,2]
[330992122,1719993040361,-500.0,0.0001726,2]
[330992123,1719993040374,-500.0,0.0001726,2]
[330992124,1719993040383,-500.0,0.0001726,2]
[330992125,1719993040393,-823.0,0.00017538,2]
[330992126,1719993040402,-158.47,0.00017591,2]
[330992127,1719993040412,-5595.32622855,0.00017741,2]
[330992128,1719993040421,-53264.75505794,0.00017895,2]
[330992129,1719993040432,-1454.24549469,0.00017895,2]
[330992130,1719993040441,-185.38345577,0.00017984,2]
[330992131,1719993040451,-1759.20948392,0.00018081,2]
[330992132,1719993040461,-1285.63390897,0.00018081,2]
[330992133,1719993040470,-160.656,0.00018124,2]
[330992134,1719993040479,-152.64,0.00018166,2]
[330992135,1719993040489,-1000.0,0.0001833,2]
[330992136,1719993040499,-500.0,0.00018356,2]
[330992137,1719993040508,-500.0,0.00018356,2]
[330992138,1719993040517,-500.0,0.00018356,2]
[330992139,1719993040527,-500.0,0.00018356,2]
[330992140,1719993040537,-5595.32622855,0.00018476,2]
[330992141,1719993040546,-281.896127,0.0001863,2]
[330992142,1719993040556,-376.25,0.00018631,2]
[330992143,1719993040565,-528.99378221,0.00018864,2]
[330992144,1719993040575,-53264.75505794,0.00018894,2]
[330992145,1719993040584,-1454.24549469,0.00018894,2]
[330992146,1719993040595,-227.12084219,0.00018899,2]
[330992147,1719993040604,-150.21,0.000189,2]
[330992148,1719993040614,-150.21,0.000189,2]
[330992149,1719993040623,-150.21,0.000189,2]
[330992150,1719993040633,-150.21,0.000189,2]
[330992151,1719993040642,-150.21,0.000189,2]
[330992152,1719993040651,-150.21,0.000189,2]
[330992153,1719993040661,-150.21,0.000189,2]
[330992154,1719993040670,-150.21,0.000189,2]
[330992155,1719993040680,-150.21,0.000189,2]
[330992156,1719993040690,-150.21,0.000189,2]
[330992157,1719993040699,-150.21,0.000189,2]
[330992158,1719993040708,-150.21,0.000189,2]
[330992159,1719993040718,-150.21,0.000189,2]
[330992160,1719993040728,-150.21,0.000189,2]
[330992161,1719993040738,-150.21,0.000189,2]
[330992162,1719993040749,-150.21,0.000189,2]
[330992163,1719993040758,-150.21,0.000189,2]
[330992164,1719993040768,-150.21,0.000189,2]
[330992165,1719993040778,-150.21,0.000189,2]
[330992166,1719993040788,-150.21,0.000189,2]
[330992167,1719993040798,-150.21,0.000189,2]
[330992168,1719993040808,-150.21,0.000189,2]
[330992169,1719993040818,-150.21,0.000189,2]
[330992170,1719993040828,-150.21,0.000189,2]
[330992171,1719993040838,-150.21,0.000189,2]
[330992172,1719993040848,-150.21,0.000189,2]
[330992173,1719993040859,-150.21,0.000189,2]
[330992174,1719993040870,-150.21,0.000189,2]
[330992175,1719993040880,-150.21,0.000189,2]
[330992176,1719993040890,-150.21,0.000189,2]
[330992177,1719993040900,-150.21,0.000189,2]
[330992178,1719993040910,-150.21,0.000189,2]
[330992179,1719993040920,-150.21,0.000189,2]
[330992180,1719993040930,-150.21,0.000189,2]
[330992181,1719993040940,-150.21,0.000189,2]
[330992182,1719993040950,-1250.0,0.00019,2]
[330992183,1719993040960,-250.0,0.00019178,2]
[330992184,1719993040972,-169.68,0.00019197,2]
[330992185,1719993040982,-5595.32622855,0.00019212,2]
[330992186,1719993040994,-160.656,0.00019226,2]
[330992187,1719993041004,-1152.0,0.00019227,2]
[330992188,1719993041014,-152.64,0.00019234,2]
[330992189,1719993041023,-500.0,0.00019452,2]
[330992190,1719993041033,-500.0,0.00019452,2]
[330992191,1719993041043,-281.896127,0.00019452,2]
[330992192,1719993041053,-150.21,0.00019883,2]
[330992193,1719993041063,-53264.75505794,0.00019893,2]
[330992194,1719993041073,-1454.24549469,0.00019893,2]
[330992195,1719993041083,-324.57225414,0.00019893,2]
[330992196,1719993041093,-5595.32622855,0.00019947,2]
[330992197,1719993041104,-1000.0,0.00019996,2]
[330992198,1719993041114,-155.0,0.0002,2]
[330992199,1719993041124,-195.90221085,0.0002,2]
[330992200,1719993041135,-1000.0,0.0002,2]
[330992201,1719993041149,-8175.0,0.000201,5]
[330992202,1719993041159,-151.0,0.00020267,2]
[330992203,1719993041169,-281.896127,0.00020274,2]
[330992204,1719993041179,-150.0,0.00020419,2]
[330992205,1719993041191,-150.59,0.00020419,2]
[330992206,1719993041200,-150.48,0.00020419,2]
[330992207,1719993041211,-150.84,0.00020419,2]
[330992208,1719993041223,-150.0,0.00020419,2]
[330992209,1719993041233,-150.0,0.00020419,2]
[330992210,1719993041243,-150.0,0.00020419,2]
[330992211,1719993041252,-500.0,0.00020548,2]
[330992212,1719993041262,-153.02562405,0.00020662,2]
[330992213,1719993041272,-166.71857967,0.0002067,2]
[330992214,1719993041283,-150.21,0.0002067,2]
[330992215,1719993041292,-150.21,0.0002067,2]
[330992216,1719993041302,-150.21,0.0002067,2]
[330992217,1719993041312,-150.21,0.0002067,2]
[330992218,1719993041323,-150.21,0.0002067,2]
[330992219,1719993041333,-190.68130362,0.00020674,2]
[330992220,1719993041343,-9649.2849655,0.0002068,2]
[330992221,1719993041357,-83498.75834026,0.0002068,2]
[330992222,1719993041369,-1446.5272,0.0002068,2]
[330992223,1719993041381,-485.49,0.0002068,2]
[330992366,1719993043181,-5658.86,0.0002068,2]
[330992429,1719993044207,-179204.5167123,0.0002068,2]
[330992430,1719993044222,-184044.30849812,0.0002068,2]
[330992431,1719993044233,-5595.32622855,0.00020683,2]
[330992432,1719993044244,-151.45077599,0.00020711,2]
[330992433,1719993044256,-161.20256662,0.00020787,2]
[330992434,1719993044266,-150.21,0.0002079,2]
[330992435,1719993044277,-150.21,0.0002079,2]
[330992436,1719993044288,-150.21,0.0002079,2]
[330992437,1719993044298,-214904.67105201,0.000208,2]
[330992438,1719993044313,-1462.60331299,0.000208,2]
[330992439,1719993044323,-190.68130362,0.00020811,2]
[330992440,1719993044334,-151.45077599,0.00020817,2]
[330992441,1719993044344,-151.45077599,0.00020821,2]
[330992442,1719993044355,-152.16731432,0.00020822,2]
[330992443,1719993044365,-151.811124,0.00020836,2]
[330992444,1719993044376,-154.4114992,0.00020848,2]
[330992445,1719993044387,-150.21,0.0002085,2]
[330992446,1719993044397,-73215.93158046,0.0002086,2]
[330992447,1719993044408,-150.93416082,0.00020872,2]
[330992448,1719993044419,-150.21,0.00020882,2]
[330992449,1719993044430,-155.38465714,0.00020891,2]
[330992450,1719993044440,-53264.75505794,0.00020892,2]
[330992451,1719993044451,-1454.24549469,0.00020892,2]
[330992452,1719993044464,-210.57712485,0.00020895,2]
[330992453,1719993044475,-376.25,0.00020895,2]
[330992454,1719993044485,-171.2311072,0.000209,2]
[330992455,1719993044496,-155.19836963,0.00020905,2]
[330992456,1719993044506,-150.21,0.0002099,2]
[330992457,1719993044516,-150.21,0.0002099,2]
[330992458,1719993044527,-150.21,0.0002099,2]
[330992459,1719993044538,-150.21,0.0002099,2]
[330992460,1719993044548,-150.21,0.0002099,2]
[330992461,1719993044558,-150.21,0.0002099,2]
[330992462,1719993044569,-188.47739805,0.00021,2]
[330992463,1719993044580,-193536.25788296,0.00021,3]
[330992476,1719993046204,-227.12084219,0.00018864,2]
[330992478,1719993046215,-734.01641473,0.00021,3]
[330992479,1719993046264,-943.31862009,0.00021,3]
[330992480,1719993046276,-6250.1,0.00021,3]
[330992481,1719993046382,-7307.43495099,0.00021,3]
[330992482,1719993046441,-302.0,0.00021,3]
[330992483,1719993046613,-661.44566901,0.00021,3]
[330992561,1719993320440,259.67177599,0.00011199,2]
[330992562,1719993320473,870.29443692,0.00011199,2]
[330992563,1719993320504,925.7845015,0.00011199,2]
[330992564,1719993320534,1057.51510936,0.00011199,2]
[330992565,1719993320564,1013.25898582,0.00011199,2]
[330992566,1719993320597,1430.93728736,0.00011199,2]
[330992567,1719993320628,1071.81602723,0.00011199,2]
[330992568,1719993320658,1353.00245097,0.00011199,2]
[330992569,1719993320688,856.77359119,0.00011199,2]
[330992570,1719993320714,6739.71107487,0.00011199,2]
[330992571,1719993320737,10000.0,0.00011199,2]
[330992572,1719993320762,7421.52842971,0.00011199,2]
[330992573,1719993320785,220150.97624337,0.00011199,2]
[330992580,1719993429257,216.63860723,0.00011199,2]
[330992581,1719993429284,19608.68854464,0.00011199,2]
[330992591,1719993520213,150.0,0.00011199,2]
[330992592,1719993520235,150.0,0.00011199,2]
[330992593,1719993520260,150.0,0.00011199,2]
[330992594,1719993520286,150.0,0.00011199,2]
[330992595,1719993520309,150.0,0.00011199,2]
[330992596,1719993520333,150.0,0.00011199,2]
[330992597,1719993520360,150.0,0.00011199,2]
[330992598,1719993520387,150.0,0.00011199,2]
[330992599,1719993520409,150.0,0.00011199,2]
[330992600,1719993520432,150.0,0.00011199,2]
[330992601,1719993520454,150.0,0.00011199,2]
[330992602,1719993520477,150.0,0.00011199,2]
[330992603,1719993520498,150.0,0.00011199,2]
[330992604,1719993520521,150.0,0.00011199,2]
[330992605,1719993520543,7719.47376755,0.00011199,2]
[330992612,1719993607284,150.0,0.00011199,2]
[330992613,1719993607306,31.08184228,0.00011199,2]
[330992617,1719993631903,150.0,0.00024545,120]
[330992619,1719993788779,150.0,0.00011199,2]
[330992620,1719993788804,59.23129906,0.00011199,2]
[330992623,1719993949690,150.0,0.00011199,2]
[330992624,1719993949711,150.0,0.00011199,2]
[330992625,1719993949732,0.77106222,0.00011199,2]
[330992628,1719993977036,150.0,0.00011199,2]
[330992629,1719993977059,110.53584481,0.00011199,2]
[330992631,1719994035301,150.0,0.00011199,2]
[330992632,1719994035325,150.0,0.00011199,2]
[330992633,1719994035350,150.0,0.00011199,2]
[330992634,1719994050805,150.0,0.00024506,120]
[330992642,1719994110850,150.0,0.00024266,120]
[330992654,1719994152073,150.0,0.00011199,2]
[330992656,1719994152099,150.0,0.00011199,2]
[330992657,1719994152120,150.0,0.00011199,2]
[330992658,1719994152143,150.0,0.00011199,2]
[330992659,1719994152164,150.0,0.00011199,2]
[330992660,1719994152184,150.0,0.00011199,2]
[330992674,1719994231348,150.0,0.00023963,120]
[330992676,1719994233331,-1436.20978201,0.00012314,2]
[330992677,1719994233342,-956.59299,0.0001278,2]
[330992678,1719994233351,-956.59299,0.000128,2]
[330992679,1719994233361,-956.593,0.0001282,2]
[330992680,1719994233370,-956.59299,0.0001286,2]
[330992681,1719994233379,-956.593,0.000129,2]
[330992682,1719994233388,-956.59299,0.0001294,2]
[330992683,1719994233397,-4510.9392,0.00013474,2]
[330992684,1719994233408,-585.63,0.00013989,3]
[330992685,1719994233416,-291.58,0.00013989,2]
[330992686,1719994233425,-150.0,0.00013998,2]
[330992687,1719994233435,-2526.08305801,0.00013999,2]
[330992688,1719994233448,-330134.91697603,0.00013999,2]
[330992689,1719994233460,-1283.99854622,0.00013999,2]
[330992690,1719994233471,-933.49206678,0.00013999,2]
[330992691,1719994233482,-1850.72560984,0.00013999,2]
[330992692,1719994233493,-6817.60326062,0.00013999,2]
[330992693,1719994233507,-338.36,0.00013999,2]
[330992694,1719994233518,-53535.50533954,0.00013999,2]
[330992695,1719994233533,-1497.04145371,0.00013999,2]
[330992696,1719994233613,-1600.97344353,0.00013999,2]
[330992697,1719994233624,-2445.02932452,0.00013999,2]
[330992698,1719994233833,-355.41834579,0.00013999,2]
[330992699,1719994233845,-283.39033038,0.00013999,2]
[330992709,1719994238434,-307.89,0.0001439,2]
[330992710,1719994238471,-474.74033045,0.0001439,2]
[330992711,1719994238482,-499.99,0.0001467,2]
[330992712,1719994238492,-782.63033044,0.00015477,2]
[330992713,1719994238505,-782.63033044,0.00016564,2]
[330992714,1719994238514,-197.327289,0.00016986,2]
[330992715,1719994238524,-305.82,0.00017232,2]
[330992716,1719994238533,-300.0,0.0001726,2]
[330992718,1719994238543,-782.63033044,0.00017651,2]
[330992720,1719994238554,-197.327289,0.00017808,2]
[330992722,1719994238564,-197.327289,0.0001863,2]
[330992724,1719994238574,-782.63033044,0.00018739,2]
[330992726,1719994238586,-150.22,0.000189,2]
[330992728,1719994238598,-250.0,0.00019053,2]
[330992730,1719994238607,-2000.0,0.00019178,2]
[330992732,1719994238617,-250.0,0.00019178,2]
[330992734,1719994238627,-755.12826093,0.000192,7]
[330992736,1719994238637,-197.327289,0.00019452,2]
[330992738,1719994238647,-305.82,0.00019496,2]
[330992740,1719994238659,-1875.0,0.000195,2]
[330992742,1719994238669,-259.96,0.00019597,2]
[330992744,1719994238679,-151.73,0.00019597,2]
[330992747,1719994238689,-150.0,0.00019597,2]
[330992749,1719994238701,-1000.0,0.00019772,2]
[330992751,1719994238711,-782.63033044,0.00019826,2]
[330992753,1719994238720,-271.8,0.0001999,2]
[330992755,1719994238730,-619.709,0.00020164,2]
[330992757,1719994238739,-823.236,0.00020164,2]
[330992759,1719994238748,-189.898,0.00020164,2]
[330992760,1719994238758,-168.577,0.00020164,2]
[330992761,1719994238767,-197.327289,0.00020274,2]
[330992762,1719994238777,-7927.0,0.00020582,2]
[330992763,1719994238786,-151.45077599,0.00020672,2]
[330992764,1719994238796,-152.67844226,0.00020682,2]
[330992765,1719994238806,-152.67844226,0.00020692,2]
[330992766,1719994238815,-158.84365481,0.000207,2]
[330992767,1719994238825,-150.93416082,0.00020711,2]
[330992768,1719994238834,-151.45077599,0.00020735,2]
[330992769,1719994238844,-203.55788735,0.00020743,2]
[330992770,1719994238854,-203.55788735,0.00020762,2]
[330992771,1719994238864,-166.50275554,0.00020772,2]
[330992772,1719994238873,-69916.67075894,0.000208,2]
[330992773,1719994238886,-489.428,0.000208,2]
[330992774,1719994238902,-1008.11306085,0.000208,2]
[330992775,1719994238925,-1337.30407824,0.000208,2]
[330992776,1719994238937,-11246.46095187,0.000208,2]
[330992777,1719994238946,-2238.595092,0.000208,3]
[330992778,1719994238956,-177.96921671,0.00020865,2]
[330992779,1719994238966,-800.0,0.00020877,2]
[330992780,1719994238975,-150.22,0.0002089,2]
[330992781,1719994238985,-2856.10794027,0.0002089,2]
[330992787,1719994240671,-23.89615973,0.0002089,2]
[330992788,1719994240682,-3489.3284,0.000209,2]
[330992789,1719994240691,-176.2221,0.000209,2]
[330992790,1719994240701,-4515.38981152,0.000209,2]
[330992891,1719994248717,-250.0,0.00020108,2]
[330992892,1719994248727,-248.59,0.0002089,3]
[330992893,1719994248737,-15679.42688848,0.000209,2]
[330992894,1719994248747,-230.0229,0.000209,2]
[330992895,1719994248756,-479.18463365,0.000209,2]
[330992896,1719994248767,-2238.59509199,0.000209,3]
[330992897,1719994248778,-782.63033044,0.00020913,2]
[330992898,1719994248787,-203.55788735,0.0002094,2]
[330992899,1719994248797,-177.96921671,0.00020966,2]
[330992900,1719994248809,-2875.1078019,0.0002099,2]
[330992901,1719994248820,-150.22,0.0002099,2]
[330992902,1719994248829,-227002.71238651,0.00021,3]
[330992903,1719994248843,-348.8603977,0.00021,3]
[330992904,1719994248869,-675.43203148,0.00021,3]
[330992905,1719994248880,-50756.42281221,0.00021,3]
[330992906,1719994248892,-5839.51800013,0.00021,3]
[330992907,1719994248904,-493.70431179,0.00021,3]
[330992908,1719994248916,-2094.83905449,0.00021,3]
[330992909,1719994248925,-1300.0,0.00021,2]
[330992910,1719994248935,-225.25950071,0.00021,2]
[330992911,1719994248944,-130.80256188,0.00021,2]
[330992912,1719994248956,-1869.19743812,0.00021,2]
[330992913,1719994248966,-200.0,0.00021,2]
[330992914,1719994248976,-2000.0,0.00021,2]
[330992915,1719994248986,-200.0,0.00021,2]
[330992916,1719994248997,-203.233329,0.00021,2]
[330992917,1719994249007,-1000.0,0.00021,21]
[330992918,1719994249017,-177.96921671,0.00021024,2]
[330992919,1719994249028,-150.93416082,0.00021038,2]
[330992920,1719994249038,-151.45077599,0.00021049,2]
[330992921,1719994249047,-800.0,0.00021068,2]
[330992922,1719994249057,-151.45077599,0.00021093,2]
[330992923,1719994249067,-197.327289,0.00021096,2]
[330992924,1719994249077,-800.0,0.00021096,2]
[330992925,1719994249087,-6218.37495156,0.000211,2]
[330992926,1719994249106,-626.08111507,0.000211,2]
[330992927,1719994249133,-10055.39337746,0.000211,2]
[330992928,1719994249143,-177.96921671,0.00021101,2]
[330992929,1719994249152,-479.18463365,0.00021111,2]
[330992931,1719994249162,-152.16731432,0.00021112,2]
[330992933,1719994249174,-214.003363,0.0002113,2]
[330992935,1719994249183,-184.460489,0.0002113,2]
[330992937,1719994249196,-160.502521,0.0002113,2]
[330992939,1719994249206,-504.978342,0.0002113,2]
[330992941,1719994249215,-177.96921671,0.00021153,2]
[330992943,1719994249224,-800.0,0.00021205,2]
[330992945,1719994249234,-150.93416082,0.00021208,2]
[330992947,1719994249244,-2000.0,0.0002121,2]
[330992949,1719994249253,-200.0,0.0002121,2]
[330992951,1719994249262,-2000.0,0.0002121,2]
[330992953,1719994249271,-200.0,0.0002121,2]
[330992955,1719994249281,-153.02562405,0.00021214,2]
[330992957,1719994249290,-1422.42,0.00021236,2]
[330992959,1719994249300,-505.066,0.00021236,2]
[330992961,1719994249309,-154.82210956,0.00021246,2]
[330992963,1719994249318,-152.67844226,0.00021252,2]
[330992965,1719994249327,-177.96921671,0.00021267,2]
[330992967,1719994249336,-177.96921671,0.00021282,2]
[330992969,1719994249346,-203.55788735,0.00021296,2]
[330992971,1719994249356,-3904.0,0.000213,4]
[330992973,1719994249365,-177.96921671,0.000213,2]
[330992975,1719994249374,-177.96921671,0.00021318,2]
[330992977,1719994249383,-479.18463365,0.00021332,2]
[330992979,1719994249392,-150.22,0.00021332,2]
[330992981,1719994249401,-150.93416082,0.00021342,2]
[330992983,1719994249410,-203.55788735,0.00021373,2]
[330992985,1719994249425,-155.19836963,0.00021377,2]
[330992987,1719994249434,-153.02562405,0.00021386,2]
[330992989,1719994249445,-504.978342,0.00021394,2]
[330992991,1719994249456,-203.55788735,0.00021412,2]
[330992993,1719994249466,-2000.0,0.00021422,2]
[330992995,1719994249476,-200.0,0.00021422,2]
[330992997,1719994249486,-2000.0,0.00021422,2]
[330992999,1719994249495,-200.0,0.00021422,2]
[330993001,1719994249509,-800.0,0.00021479,2]
[330993003,1719994249519,-160.502521,0.00021482,2]
[330993005,1719994249528,-155.19836963,0.00021545,2]
[330993007,1719994249539,-166.66666668,0.00021546,2]
[330993008,1719994249548,-152.67844226,0.00021554,2]
[330993009,1719994249558,-26632.37752897,0.00021563,2]
[330993010,1719994249567,-153.02562405,0.00021586,2]
[330993011,1719994249577,-479.18463365,0.00021626,2]
[330993012,1719994249587,-1674.34047715,0.00021636,2]
[330993013,1719994249601,-325.65952285,0.00021636,2]
[330993014,1719994249611,-200.0,0.00021636,2]
[330993015,1719994249621,-2000.0,0.00021636,2]
[330993016,1719994249631,-200.0,0.00021636,2]
[330993017,1719994249641,-296.3,0.00021644,2]
[330993018,1719994249650,-152.63,0.00021644,2]
[330993019,1719994249660,-7.20013631,0.00021644,2]
[330993020,1719994249673,-219.04986369,0.00021644,2]
[330993021,1719994249683,-504.978342,0.00021658,2]
[330993022,1719994249692,-184.460489,0.00021658,2]
[330993023,1719994249703,-161.20256662,0.0002166,2]
[330993024,1719994249713,-800.0,0.00021671,2]
[330993025,1719994249724,-220.28,0.00021671,2]
[330993026,1719994249734,-203.55788735,0.00021696,2]
[330993027,1719994249743,-151.45077599,0.00021728,2]
[330993028,1719994249753,-500.0,0.00021741,2]
[330993029,1719994249762,-1000.0,0.00021742,2]
[330993030,1719994249772,-500.0,0.00021742,2]
[330993031,1719994249782,-500.0,0.00021742,2]
[330993032,1719994249792,-200.0,0.00021742,2]
[330993033,1719994249802,-305.82,0.0002176,2]
[330993034,1719994249813,-6279.51081998,0.0002178,2]
[330993035,1719994249825,-203.55788735,0.00021781,2]
[330993036,1719994249836,-26632.37752897,0.00021784,2]
[330993037,1719994249848,-479.18463365,0.00021786,2]
[330993038,1719994249857,-185.38345577,0.00021791,2]
[330993039,1719994249868,-151.0,0.00021807,2]
[330993040,1719994249877,-188.22778166,0.00021808,2]
[330993041,1719994249887,-1398.83155722,0.00021817,2]
[330993042,1719994249898,-150.0,0.00021831,2]
[330993043,1719994249908,-160.502521,0.00021834,2]
[330993044,1719994249919,-300.0,0.00021836,2]
[330993045,1719994249929,-716.63369653,0.00021841,2]
[330993046,1719994249938,-12802.4140986,0.00021848,3]
[330993047,1719994249948,-2000.0,0.00021853,2]
[330993048,1719994249957,-200.0,0.00021853,2]
[330993049,1719994249967,-2000.0,0.00021853,2]
[330993050,1719994249976,-200.0,0.00021853,2]
[330993051,1719994249985,-867.82451069,0.00021865,2]
[330993052,1719994249996,-700.0,0.0002187,2]
[330993053,1719994250006,-808.51022347,0.0002187,2]
[330993054,1719994250015,-2018.95610953,0.00021873,2]
[330993055,1719994250026,-479.18463365,0.00021885,2]
[330993056,1719994250036,-177.96921671,0.00021894,2]
[330993057,1719994250048,-151.45077599,0.00021895,2]
[330993058,1719994250058,-327.27195084,0.00021898,2]
[330993059,1719994250067,-20505.87268224,0.000219,2]
[330993060,1719994250077,-491.0,0.000219,4]
[330993061,1719994250087,-191.0,0.000219,4]
[330993062,1719994250099,-154.82210956,0.00021903,2]
[330993063,1719994250109,-150.22,0.00021907,2]
[330993064,1719994250120,-150.22,0.00021907,2]
[330993065,1719994250130,-150.22,0.00021907,2]
[330993066,1719994250140,-150.22,0.00021907,2]
[330993067,1719994250148,-395.0,0.0002191,3]
[330993068,1719994250158,-1398.83155713,0.00021915,2]
[330993069,1719994250169,-1124.49138014,0.00021916,2]
[330993070,1719994250223,-1000.0,0.00021916,3]
[330993071,1719994250234,-1000.0,0.00021916,3]